[Event "44th Indian Team Championship 2025"]
[Site "Gujarat"]
[Date "2025.03.05"]
[Round "1.15"]
[White "Vyom Malhotra"]
[Black "Sidhant, Mohapatra"]
[Result "1-0"]
[Annotator "TA"]
[ECO "C50"]
[WhiteElo "1901"]
[BlackElo "2382"]
[PlyCount "109"]
[EventDate "2025.03.03"]
[EventCountry "IND"]
[SourceTitle "playchess.com"]
[Source "ChessBase"]
[SourceQuality "1"]
[TimeControl "5400+30"]

{[%evp 22,109,0,-19,-22,-16,0,10,18,20,38,24,60,45,54,47,52,66,67,-7,0,0,0,-25,0,-14,58,57,64,64,60,66,88,43,54,43,56,56,42,58,115,115,95,94,184,172,208,191,268,273,247,249,272,270,325,325,341,333,365,377,347,333,328,218,256,232,356,318,349,361,358,335,302,262,232,20,16,16,176,20,20,20,48,47,46,47,218,214,729,696]} 1. e4 {[%emt 0:00:38]} e5 {[%emt 0:00:31]} 2. Nf3 {[%emt 0:00:18]} Nc6 {[%emt 0:00:45]} 3. Bc4 {[%emt 0:00:28]} Bc5 {[%emt 0:01:34]} 4. d3 {[%emt 0:00:14]} Nf6 {[%emt 0:00:07]} 5. Nc3 {[%emt 0:00:11]} h6 {[%emt 0:02:06]} 6. h3 {[%emt 0:01:46]} a6 {[%emt 0:01:21]} 7. O-O {[%emt 0:00:12]} d6 {[%emt 0:00:07]} 8. Be3 {[%emt 0:00:34]} Bxe3 {[%emt 0:01:00]} 9. fxe3 {[%emt 0:00:02]} Na5 {[%emt 0:00:10]} 10. Bb3 {[%emt 0:00:32]} Nxb3 {[%emt 0:02:12]} 11. axb3 {[%emt 0:00:27]} O-O {[%emt 0:00:09]} 12. Qe1 {[%emt 0:04:54]} c6 {[%emt 0:00:31] C50: Hungarian Defence and Giuoco Pianissimo.} 13. Ne2 {[%emt 0:05:59]} b5 $146 {[%emt 0:05:11]} (13... Qe7 14. Ng3 d5 15. Nh4 g6 16. Nf3 dxe4 17. dxe4 c5 18. Qc3 Nd7 19. Rf2 b6 20. Rd1 {1-0 Maulana,F (1794)-Berata,I (1528) Surabaya Cap Kapal op 2024 (8)}) 14. b4 {[%emt 0:01:15]} Qe7 {[%emt 0:01:53] The position is equal.} 15. Ng3 {[%emt 0:00:25]} d5 {[%emt 0:04:22]} 16. exd5 {[%emt 0:25:36]} cxd5 {[%emt 0:01:30]} 17. d4 {[%emt 0:04:30]} exd4 {[%emt 0:03:44]} 18. exd4 {[%emt 0:00:34]} Qc7 {[%emt 0:00:17]} 19. c3 {[%emt 0:02:51]} Re8 {[%emt 0:01:13]} 20. Ne2 {[%emt 0:01:34]} (20. Ne5 $14) 20... Ne4 {[%emt 0:03:04]} 21. Qh4 {[%emt 0:10:26]} f6 {[%emt 0:07:02] Inhibits Ne5.} 22. Qf4 {[%emt 0:12:56]} Qc4 {[%emt 0:07:25]} 23. Ng3 {[%emt 0:04:43]} Bd7 {[%emt 0:12:27]} (23... g5 $11 24. Qe3 Qc7 (24... Nxg3 $2 25. Qxe8+ Kg7 26. Qe7+ Kg8 27. Ne5 $18) (24... Bxh3 25. Nd2 $18) 25. Nxe4 dxe4) 24. Nd2 $14 {[%emt 0:08:09]} Nxd2 {[%emt 0:03:29]} 25. Qxd2 {[%emt 0:00:01]} Qc7 {[%emt 0:00:08]} 26. Nh5 {[%emt 0:00:57][%cal Of1f6]} Re7 {[%emt 0:00:40]} 27. Rfe1 {[%emt 0:04:46]} Re4 {[%emt 0:02:51]} 28. Rxe4 {[%emt 0:01:06]} dxe4 {[%emt 0:00:07]} 29. Qf4 $1 {[%emt 0:00:21]} Qxf4 {[%emt 0:03:04]} 30. Nxf4 {[%emt 0:00:02][%mdl 4096] Endgame KRB-KRN} f5 {[%emt 0:00:28]} ({Better is} 30... Kf7 $14) 31. h4 $16 {[%emt 0:00:45][%cal Bh3h4,Bh4h5][%mdl 32] White is more active.} Kf7 {[%emt 0:01:57]} 32. h5 {[%emt 0:00:35]} Bc6 {[%emt 0:00:08]} (32... Ke7 $16) 33. Kf2 $18 {[%emt 0:00:22]} Bb7 {[%emt 0:00:17]} 34. Ke3 {[%emt 0:00:09]} Kf6 {[%emt 0:00:07]} (34... Rc8 $142 35. Rc1 Ra8) 35. b3 $1 {[%emt 0:03:58][%cal Bb2b3,Bb3c4,Bc4c5,Bc5c6,Bc6c7][%mdl 32]} Rc8 {[%emt 0:01:05]} 36. Rc1 {[%emt 0:00:12]} Bc6 {[%emt 0:00:49]} 37. g3 {[%emt 0:02:59]} Be8 {[%emt 0:00:27]} 38. c4 {[%emt 0:01:18]} bxc4 {[%emt 0:00:13]} 39. bxc4 {[%emt 0:00:56]} Bf7 {[%emt 0:00:05]} 40. c5 {[%emt 0:00:31]} Rb8 {[%emt 0:00:04]} 41. Rb1 {[%emt 0:01:40]} Rb5 {[%emt 0:01:48]} 42. c6 {[%emt 0:00:42]} Ke7 {[%emt 0:00:24]} 43. d5 {[%emt 0:00:38]} Kd6 {[%emt 0:01:39]} (43... Bxd5 $142 44. Rc1 (44. Nxd5+ Rxd5 45. g4 Rd3+ 46. Kf4 Rf3+ 47. Ke5 fxg4 $15) 44... Bxc6) 44. Rc1 {[%emt 0:00:26] White wants to mate with c7.} Rb8 {[%emt 0:00:15]} 45. c7 {[%emt 0:00:17]} Rc8 {[%emt 0:00:14]} 46. Rc6+ {[%emt 0:00:37]} Kd7 {[%emt 0:00:01]} 47. Rxa6 {[%emt 0:00:40]} Rxc7 {[%emt 0:00:05] [#]} 48. g4 $2 {[%emt 0:00:28]} fxg4 $11 {[%emt 0:01:22]} 49. Kxe4 {[%emt 0:00:09]} g3 $2 {[%emt 0:00:09]} (49... Rc4+ $1 $11 {and Black has nothing to worry.} 50. Kf5 Rxb4) 50. Kf3 $2 {[%emt 0:00:38]} (50. Ke5 $1 $18) 50... Rc3+ {[%emt 0:00:28]} 51. Kg2 {[%emt 0:00:08]} Be8 {[%emt 0:00:46]} 52. Ne6 {[%emt 0:01:14] and Nc5+ should not be overlooked} Bxh5 {[%emt 0:01:04]} 53. Nc5+ $1 {[%emt 0:00:04]} Kd8 $2 {[%emt 0:00:17] [#]} (53... Ke8 $1 $14 54. Ra8+ Kf7 55. Ra7+ Kf8 (55... Kg6 56. d6 $18)) 54. Ra8+ $1 $18 {[%emt 0:00:03][%mdl 1024] White has strong compensation.} Kc7 $2 {[%emt 0:00:08] [#]} (54... Ke7) 55. d6+ $1 {[%emt 0:01:01][%mdl 512] Weighted Error Value: White=0.21 (precise) /Black=0.45  Loses game:     	---       	Black=1      Missed win:     	White=1     	---        Mistake:       	White=2     	Black=7      Inaccurate:     	White=2     	Black=3      OK:         	White=14    	Black=7      Best:        	White=4     	Black=6      Strong:       	White=4     	---        Brilliant:      	White=1     	---} 1-0

[Event "44th Indian Team Championship 2025"]
[Site "Gujarat"]
[Date "2025.03.05"]
[Round "1.16"]
[White "Nayak Rajesh"]
[Black "Sahil Bheron"]
[Result "1-0"]
[Annotator "TA"]
[ECO "C02"]
[WhiteElo "2278"]
[BlackElo "1924"]
[PlyCount "61"]
[EventDate "2025.03.03"]
[EventCountry "IND"]
[SourceTitle "playchess.com"]
[Source "ChessBase"]
[SourceQuality "1"]
[TimeControl "5400+30"]

{[%evp 13,61,0,28,-33,-17,-31,-19,-29,6,0,0,0,0,0,-13,-23,-8,-34,-1,-35,-32,-26,0,0,0,0,0,0,250,259,258,258,225,239,380,370,559,535,901,767,2156,2022,5289,5285,5289,5289,29993,2399,29994,29995]} 1. e4 {[%emt 0:00:07]} e6 {[%emt 0:01:36]} 2. d4 {[%emt 0:00:12]} d5 {[%emt 0:00:03]} 3. e5 {[%emt 0:00:07]} c5 {[%emt 0:00:10]} 4. c3 {[%emt 0:00:08]} Nc6 {[%emt 0:00:09]} 5. Nf3 {[%emt 0:00:05]} Bd7 {[%emt 0:00:15]} 6. Be2 {[%emt 0:01:54]} Nge7 {[%emt 0:00:30]} 7. O-O {[%emt 0:08:29]} Nf5 {[%emt 0:00:59]} 8. g4 {[%emt 0:11:04] C02: French: Advance Variation.} (8. Bd3 $11) 8... Nh4 $15 {[%emt 0:02:17]} 9. Nxh4 {[%emt 0:00:40]} Qxh4 {[%emt 0:00:04]} 10. f4 {[%emt 0:00:31] The position is equal.} Qd8 {[%emt 0:16:35]} 11. Be3 {[%emt 0:05:05]} Qb6 {[%emt 0:00:38]} 12. Qd2 $146 {[%emt 0:00:52]} (12. Na3 cxd4 13. cxd4 a6 14. Nc2 f5 15. gxf5 exf5 16. Rb1 Nd8 17. Bf3 Bc6 18. b4 {1-0 Paichadze,L (2504)-Durarbayli,V (2627) Titled Tuesday intern op 02nd Apr Early blitz 2024 (7)}) 12... h5 {[%emt 0:05:58]} 13. gxh5 {[%emt 0:04:13]} O-O-O {[%emt 0:01:38] Black sacrificed a pawn} 14. Kh1 {[%emt 0:02:59]} Kb8 {[%emt 0:06:07]} 15. Rg1 {[%emt 0:04:00]} Rc8 {[%emt 0:03:18]} 16. Bf3 {[%emt 0:13:38]} (16. dxc5 {keeps more tension.} Bxc5 17. Bxc5 Qxc5 18. b4) 16... cxd4 {[%emt 0:12:24]} 17. cxd4 {[%emt 0:00:41]} Ne7 {[%emt 0:05:40]} 18. Nc3 {[%emt 0:06:33][%cal Bb1c3,Bc3d5,Bd5e3][%mdl 32]} Nf5 {[%emt 0:00:08]} 19. Bf2 {[%emt 0:02:25]} Be8 {[%emt 0:06:57]} 20. Rac1 {[%emt 0:01:20][%cal Oc3d5]} f6 $2 {[%emt 0:03:07] [#]} (20... g6 $11 {and Black has nothing to worry.}) 21. Nxd5 $1 $18 {[%emt 0:08:49][%mdl 512]} Qd8 {[%emt 0:15:30] And now ...Rxc1 would win.} 22. Rxc8+ {[%emt 0:04:09]} Qxc8 {[%emt 0:00:50] [#]} 23. Ne3 $1 {[%emt 0:01:29]} ({Weaker is} 23. Rc1 Bc6 $16) 23... Bxh5 {[%emt 0:04:23]} (23... Ne7 $142 24. Rc1 Qd7) 24. Bg2 {[%emt 0:00:25]} Nxe3 {[%emt 0:07:14]} (24... Nxd4 $142 25. Qxd4 Bc5) 25. Qxe3 {[%emt 0:00:18] Hoping for d5.} Be8 {[%emt 0:04:13]} 26. Rc1 {[%emt 0:01:30]} Bc6 {[%emt 0:01:22] [#]} 27. d5 $1 {[%emt 0:01:41][%mdl 512]} exd5 {[%emt 0:00:27]} (27... Bc5 28. Qxc5) 28. Qxa7+ {[%emt 0:00:14]} Kc7 {[%emt 0:00:08]} 29. Bxd5 {[%emt 0:00:13]} Kd8 {[%emt 0:00:39]} 30. Bb6+ {[%emt 0:00:26]} (30. Rxc6 $142 Qxc6 31. Bxc6 Rxh2+ 32. Kxh2 bxc6 33. e6 Kc8 34. Bb6 (34. Qf7 c5 35. Qxf8+ Kc7 36. Qxc5+ Kd8 37. Qd5+ Kc8 38. Ba7 g6 39. Qd7#) 34... Bd6 35. Qa8+ Bb8 36. Qa6#) 30... Ke8 {[%emt 0:00:25] [#]} 31. Rxc6 $1 {[%emt 0:00:14] Weighted Error Value: White=0.31/Black=1.46  Loses game:     	---       	Black=1      Mistake:       	---       	Black=2      Inaccurate:     	White=2     	Black=5      OK:         	White=9     	Black=6      Best:        	White=2     	---        Strong:       	White=1     	---        Brilliant:      	White=1     	---} 1-0

[Event "44th Indian Team Championship 2025"]
[Site "Gujarat"]
[Date "2025.03.05"]
[Round "1.17"]
[White "Sree Shaunak Chanda"]
[Black "Vatsal Makol"]
[Result "1/2-1/2"]
[Annotator "NA RC"]
[ECO "E41"]
[WhiteElo "2015"]
[BlackElo "1788"]
[PlyCount "80"]
[EventDate "2025.03.03"]
[EventCountry "IND"]
[SourceTitle "playchess.com"]
[Source "ChessBase"]
[SourceQuality "1"]
[TimeControl "5400+30"]

1. d4 {[%emt 0:00:01]} Nf6 {[%emt 0:00:16]} 2. c4 {[%emt 0:00:06]} e6 {[%emt 0:00:02]} 3. Nc3 {[%emt 0:00:03]} Bb4 {[%emt 0:00:03]} 4. e3 {[%emt 0:00:03]} Bxc3+ {[%emt 0:00:03]} 5. bxc3 {[%emt 0:00:04]} c5 {[%emt 0:00:14]} 6. Bd3 {[%emt 0:00:06]} d6 {[%emt 0:00:06]} 7. Ne2 {[%emt 0:00:09]} Nc6 {[%emt 0:00:19]} 8. O-O {[%emt 0:00:26]} b6 {[%emt 0:00:44]} 9. e4 {[%emt 0:00:20]} Bb7 {[%emt 0:04:10]} 10. f4 {[%emt 0:02:38]} Qe7 {[%emt 0:05:09]} 11. d5 {[%emt 0:01:24]} Na5 {[%emt 0:00:56]} 12. Ng3 {[%emt 0:00:05]} O-O-O {[%emt 0:04:13]} 13. Re1 {[%emt 0:01:37]} g6 {[%emt 0:07:49]} 14. Nf1 {[%emt 0:02:54]} Rhe8 {[%emt 0:12:50]} 15. Bb2 {[%emt 0:01:15]} Ba6 {[%emt 0:09:03]} 16. Ne3 {[%emt 0:01:28]} exd5 {[%emt 0:09:16]} 17. Nxd5 {[%emt 0:00:14]} Nxd5 {[%emt 0:02:55]} 18. cxd5 {[%emt 0:00:10]} Qb7 {[%emt 0:04:36]} 19. Qe2 {[%emt 0:08:36]} c4 {[%emt 0:03:11]} 20. Bc2 {[%emt 0:00:32]} f5 {[%emt 0:00:07]} 21. Ba3 {[%emt 0:01:00]} Qc7 {[%emt 0:07:20]} 22. Rad1 {[%emt 0:06:17]} fxe4 {[%emt 0:02:07]} 23. Bxe4 {[%emt 0:00:41]} Kb8 {[%emt 0:01:11]} 24. Qf2 {[%emt 0:01:22]} Nb7 {[%emt 0:01:11]} 25. Bf3 {[%emt 0:04:33]} Nc5 {[%emt 0:02:05]} 26. Bxc5 {[%emt 0:00:44]} Qxc5 {[%emt 0:05:11]} 27. g3 {[%emt 0:00:20]} Qxf2+ {[%emt 0:02:21]} 28. Kxf2 {[%emt 0:00:04]} b5 {[%emt 0:02:17]} 29. g4 {[%emt 0:01:53]} Kc7 {[%emt 0:01:00]} 30. Kg3 {[%emt 0:00:18]} Kb6 {[%emt 0:01:50]} 31. f5 {[%emt 0:01:06]} gxf5 {[%emt 0:01:17]} 32. Rxe8 {[%emt 0:00:25]} Rxe8 {[%emt 0:00:05]} 33. gxf5 {[%emt 0:00:02]} Kc5 {[%emt 0:03:50]} 34. Kf4 {[%emt 0:00:43]} Bb7 {[%emt 0:03:34]} 35. f6 {[%emt 0:00:37]} Rf8 {[%emt 0:00:33]} 36. Kf5 {[%emt 0:04:09]} Bc8+ {[%emt 0:00:12]} 37. Kg5 {[%emt 0:00:04]} Rg8+ {[%emt 0:00:15]} 38. Kh4 {[%emt 0:00:06]} Rf8 {[%emt 0:00:19]} 39. Kg5 {[%emt 0:00:04]} Rg8+ {[%emt 0:00:07]} 40. Kh4 {[%emt 0:00:09]} Rf8 {[%emt 0:00:02]} 1/2-1/2

[Event "44th Indian Team Championship 2025"]
[Site "Gujarat"]
[Date "2025.03.05"]
[Round "1.18"]
[White "Akshat Negi"]
[Black "Challa Saharsha"]
[Result "1-0"]
[Annotator "TA"]
[ECO "B28"]
[WhiteElo "1849"]
[BlackElo "2096"]
[PlyCount "77"]
[EventDate "2025.03.03"]
[EventCountry "IND"]
[SourceTitle "playchess.com"]
[Source "ChessBase"]
[SourceQuality "1"]
[TimeControl "5400+30"]

{[%evp 10,77,46,33,34,19,9,0,3,-10,0,7,2,12,6,6,8,17,27,21,17,25,21,24,17,19,24,16,18,11,13,7,68,54,81,82,83,88,105,57,106,108,91,0,0,0,0,0,90,89,90,92,415,396,406,399,463,484,526,496,545,553,874,860,888,871,947,627,29976,29971]} 1. e4 {[%emt 0:00:06]} c5 {[%emt 0:00:42]} 2. Nf3 {[%emt 0:00:03]} a6 {[%emt 0:00:28]} 3. c3 {[%emt 0:01:57][%cal Bc2c3,Bc3c4][%mdl 32]} d5 {[%emt 0:00:12]} 4. exd5 {[%emt 0:00:02]} Qxd5 {[%emt 0:00:12]} 5. d4 {[%emt 0:00:02]} e6 {[%emt 0:00:07]} 6. Be3 {[%emt 0:01:39]} Nd7 {[%emt 0:00:10] B28: Sicilian: 2 Nf3 a6 (O'Kelly Variation).} 7. c4 {[%emt 0:01:52]} Qc6 {[%emt 0:00:10]} 8. Nc3 {[%emt 0:01:31]} Ngf6 {[%emt 0:00:50] The position is equal.} 9. h3 $146 {[%emt 0:04:03]} ({Predecessor:} 9. Be2 b6 10. d5 exd5 11. cxd5 Qc7 12. O-O Bd6 13. a4 O-O 14. h3 Re8 15. Re1 {1-0 Vitiugov,N (2724)-Sielecki,C (2419) Titled Tuesday intern op 23rd May Early blitz 2023 (6)}) 9... Be7 {[%emt 0:02:32]} 10. Be2 {[%emt 0:00:21]} O-O {[%emt 0:02:23]} 11. O-O {[%emt 0:00:52]} b6 {[%emt 0:01:29]} 12. Ne5 {[%emt 0:01:03]} Qc7 {[%emt 0:02:00]} 13. Bf3 {[%emt 0:00:10]} Bb7 {[%emt 0:04:12]} (13... cxd4 {seems wilder.} 14. Qxd4 Bb7 15. Nxd7 Nxd7 16. Rfd1 Rad8) 14. Bxb7 {[%emt 0:03:19]} Qxb7 {[%emt 0:00:28]} 15. Nxd7 {[%emt 0:00:07]} Nxd7 {[%emt 0:01:59]} 16. d5 {[%emt 0:00:48]} Bf6 {[%emt 0:06:36]} 17. dxe6 {[%emt 0:01:16]} fxe6 {[%emt 0:00:11]} 18. Qc2 {[%emt 0:01:17]} Bd4 {[%emt 0:08:17]} 19. Rfe1 {[%emt 0:01:49]} e5 {[%emt 0:03:59]} 20. Nd5 {[%emt 0:06:41][%cal Bc3d5,Bd5e7,Be7f5][%mdl 32]} Rf7 {[%emt 0:11:25]} ({Black should try} 20... Kh8 $11) 21. Bxd4 $14 {[%emt 0:01:46][%csl Od5] Strong Square White (d5)} exd4 {[%emt 0:04:11] [#]} 22. Re6 $1 {[%emt 0:00:08]} Raf8 {[%emt 0:07:48]} 23. Rae1 {[%emt 0:01:15] White has strong rooks and is better} b5 {[%emt 0:05:03]} (23... Rxf2 $2 24. Qxf2 Rxf2 25. Kxf2 $18) 24. b3 {[%emt 0:18:15]} (24. Re7 $16) 24... Nf6 {[%emt 0:05:11] Inhibits Qe4.} (24... bxc4 $14 25. Qxc4 Kh8 (25... Rxf2 $2 26. Nf4 $18)) 25. Ne7+ {[%emt 0:13:40]} Kh8 {[%emt 0:01:29]} 26. R1e5 {[%emt 0:01:19]} (26. cxb5 $16 Qxb5 27. Nf5) 26... Ng8 $11 {[%emt 0:05:45]} 27. Nf5 {[%emt 0:13:06]} Qd7 {[%emt 0:08:21]} 28. Qe4 {[%emt 0:05:21]} Nf6 {[%emt 0:03:53]} (28... Rf6 $11) 29. Qd3 $16 {[%emt 0:01:36] and Nd6 should not be overlooked} Nh5 {[%emt 0:03:31]} 30. Nd6 $40 {[%emt 0:01:09][%cal Oe5h5][%mdl 128] White goes for the king.} bxc4 $2 {[%emt 0:06:37][%mdl 8192] Black cannot hold the game after this.} (30... Nf4 $16 {is a better chance.} 31. Nxf7+ Qxf7) 31. Nxf7+ $18 {[%emt 0:02:00]} (31. bxc4 Nf4 32. Nxf7+ Qxf7 $16) 31... Qxf7 {[%emt 0:00:33] [#]} 32. Qf5 {[%emt 0:06:03][%mdl 512] Active counter play!} Nf6 {[%emt 0:02:03]} (32... Qxf5 33. Rxf5 (33. bxc4 Qxf2+ 34. Kh2 Qg3+ 35. Kg1 Nf4 36. Kf1 Nxe6+ 37. Ke2 Qxe5+ 38. Kd1 Rf1+ 39. Kd2 Qe3+ 40. Kc2 Qc3#) 33... Nf6 34. bxc4 $18) (32... g6 33. Qxf7) 33. bxc4 {[%emt 0:00:13]} Rd8 {[%emt 0:02:41]} 34. Rxc5 {[%emt 0:02:25]} d3 {[%emt 0:01:07][%cal Bd4d3,Bd3d2][%mdl 32] ...d2 would now be deadly.} 35. Rd5 {[%emt 0:00:44]} ({Inferior is} 35. Rxa6 d2 $17) 35... Rxd5 {[%emt 0:00:34]} 36. cxd5 {[%emt 0:00:02]} d2 {[%emt 0:00:41]} 37. Qd3 {[%emt 0:00:02]} (37. Rxa6 $2 d1=Q+ (37... d1=B $2 {is the wrong capture.} 38. Ra8+ $18) 38. Kh2 Qdxd5 39. Qxd5 Qxd5 $19) 37... Nxd5 {[%emt 0:00:33]} 38. Rd6 {[%emt 0:02:10] White threatens Rd8+ and mate.} Nc3 {[%emt 0:00:35]} 39. Rd8+ {[%emt 0:00:07] Weighted Error Value: White=0.24 (precise) /Black=0.60  Loses game:     	---       	Black=1      Mistake:       	White=2     	Black=3      Inaccurate:     	---       	Black=2      OK:         	White=15    	Black=10     Best:        	White=2     	Black=1      Strong:       	White=1     	---        Brilliant:      	White=1     	---} 1-0